[Event "CCT Chessable Masters Place D-I 2024"]
[Site "Online"]
[Date "2024.02.01"]
[Round "2"]
[White "Sam_ChessMood"]
[Black "Martinez Alcantara, Jose Eduardo"]
[Result "1/2-1/2"]
[ECO "E43"]
[WhiteElo "2651"]
[BlackElo "2610"]
[Annotator "ChessBase"]
[PlyCount "61"]
[EventDate "2024.01.12"]
[EventType "k.o."]
[EventCountry "NET"]
[SourceTitle "playchess.com"]
[Source "ChessBase"]
[SourceQuality "1"]
[TimeControl "600+2"]

1. d4 {[%emt 0:00:05]} Nf6 {[%emt 0:00:04]} 2. c4 {[%emt 0:00:01]} e6 {[%emt 0:00:00]} 3. Nf3 {[%emt 0:00:09]} Bb4+ {[%emt 0:00:01]} 4. Nc3 {[%emt 0:00:01]} b6 {[%emt 0:00:06]} 5. e3 {[%emt 0:00:10]} Bb7 {[%emt 0:00:02]} 6. Bd3 {[%emt 0:00:01]} O-O {[%emt 0:00:35]} 7. O-O {[%emt 0:00:04]} c5 {[%emt 0:00:01]} 8. Na4 {[%emt 0:00:25]} cxd4 {[%emt 0:00:14]} 9. exd4 {[%emt 0:00:01]} Be7 {[%emt 0:00:01]} 10. a3 {[%emt 0:01:24]} d6 {[%emt 0:00:05]} 11. b4 {[%emt 0:00:05]} Nbd7 {[%emt 0:00:02]} 12. Bb2 {[%emt 0:00:23]} a6 {[%emt 0:00:01]} 13. Nc3 {[%emt 0:00:07]} Rc8 {[%emt 0:00:01]} 14. Qe2 {[%emt 0:00:17]} Re8 {[%emt 0:00:01]} 15. Rad1 {[%emt 0:00:08]} Bf8 {[%emt 0:00:06]} 16. Rfe1 {[%emt 0:00:12]} Qc7 {[%emt 0:00:05]} 17. Nd2 {[%emt 0:01:53]} h6 {[%emt 0:00:33]} 18. h3 {[%emt 0:00:02]} Qb8 {[%emt 0:00:02]} 19. Qe3 {[%emt 0:00:15]} d5 {[%emt 0:00:38]} 20. Bf1 {[%emt 0:01:17]} dxc4 {[%emt 0:00:24]} 21. Nxc4 {[%emt 0:00:01]} Nd5 {[%emt 0:00:08]} 22. Nxd5 {[%emt 0:00:51]} Bxd5 {[%emt 0:00:00]} 23. Ne5 {[%emt 0:00:11]} Nxe5 {[%emt 0:00:01]} 24. dxe5 {[%emt 0:00:01]} Qb7 {[%emt 0:00:08]} 25. Rd4 {[%emt 0:00:13]} Rc2 {[%emt 0:00:50]} 26. Ba1 {[%emt 0:00:02]} Rec8 {[%emt 0:00:03]} 27. Rg4 {[%emt 0:00:02]} g6 {[%emt 0:01:18]} 28. Bd4 {[%emt 0:00:14]} h5 {[%emt 0:00:53]} 29. Rg3 {[%emt 0:00:09]} Kh7 {[%emt 0:00:01]} 30. Qg5 {[%emt 0:01:03]} Bh6 {[%emt 0:00:17]} 31. Qf6 {[%emt 0:00:02]} 1/2-1/2

[Event "CCT Chessable Masters Place D-I 2024"]
[Site "Online"]
[Date "2024.02.01"]
[Round "2"]
[White "Martinez Alcantara, Jose Eduardo"]
[Black "Sam_ChessMood"]
[Result "1/2-1/2"]
[ECO "B50"]
[WhiteElo "2610"]
[BlackElo "2653"]
[Annotator "ChessBase"]
[PlyCount "121"]
[EventDate "2024.01.12"]
[EventType "k.o."]
[EventCountry "NET"]
[SourceTitle "playchess.com"]
[Source "ChessBase"]
[SourceQuality "1"]
[TimeControl "600+2"]

1. e4 {[%emt 0:00:05]} c5 {[%emt 0:00:04]} 2. Nf3 {[%emt 0:00:01]} d6 {[%emt 0:00:01]} 3. c3 {[%emt 0:00:01]} Nf6 {[%emt 0:00:02]} 4. h3 {[%emt 0:00:00]} g6 {[%emt 0:00:10]} 5. Bd3 {[%emt 0:00:04]} Bg7 {[%emt 0:00:02]} 6. Bc2 {[%emt 0:00:00]} e5 {[%emt 0:00:26]} 7. d3 {[%emt 0:00:01]} O-O {[%emt 0:00:01]} 8. Bg5 {[%emt 0:00:03]} h6 {[%emt 0:00:14]} 9. Bxf6 {[%emt 0:00:01]} Bxf6 {[%emt 0:00:01]} 10. Bb3 {[%emt 0:00:05]} Nc6 {[%emt 0:00:04]} 11. Nbd2 {[%emt 0:00:04]} Bg7 {[%emt 0:00:12]} 12. O-O {[%emt 0:00:02]} Kh7 {[%emt 0:00:08]} 13. a3 {[%emt 0:00:07]} f5 {[%emt 0:00:11]} 14. Ba2 {[%emt 0:00:08]} a5 {[%emt 0:00:23]} 15. a4 {[%emt 0:00:38]} f4 {[%emt 0:00:14]} 16. Re1 {[%emt 0:00:21]} g5 {[%emt 0:00:11]} 17. Nh2 {[%emt 0:00:01]} Bd7 {[%emt 0:00:58]} 18. Bd5 {[%emt 0:00:19]} Be8 {[%emt 0:00:44]} 19. Qb3 {[%emt 0:00:32]} Rb8 {[%emt 0:00:10]} 20. Kf1 {[%emt 0:00:59]} Ne7 {[%emt 0:00:09]} 21. Bc4 {[%emt 0:00:16]} h5 {[%emt 0:00:07]} 22. Ke2 {[%emt 0:00:12]} Bf6 {[%emt 0:00:08]} 23. Rh1 {[%emt 0:00:09]} Kg7 {[%emt 0:00:04]} 24. Rag1 {[%emt 0:00:30]} Bg6 {[%emt 0:00:04]} 25. g4 {[%emt 0:00:11]} h4 {[%emt 0:00:33]} 26. Nhf3 {[%emt 0:00:06]} Nc6 {[%emt 0:00:24]} 27. Ra1 {[%emt 0:00:09]} Qc7 {[%emt 0:00:08]} 28. Rhe1 {[%emt 0:00:05]} Rfd8 {[%emt 0:00:03]} 29. Kf1 {[%emt 0:00:01]} Ne7 {[%emt 0:00:15]} 30. Kg2 {[%emt 0:00:17]} Qc6 {[%emt 0:00:03]} 31. Bd5 {[%emt 0:00:33]} Qc7 {[%emt 0:00:12]} 32. Be6 {[%emt 0:00:03]} Qc6 {[%emt 0:00:05]} 33. Bc4 {[%emt 0:02:26]} Qc7 {[%emt 0:00:27]} 34. Rac1 {[%emt 0:00:09]} Nc6 {[%emt 0:00:18]} 35. Qa2 {[%emt 0:00:10]} Qd7 {[%emt 0:00:15]} 36. Be6 {[%emt 0:00:14]} Qe7 {[%emt 0:00:01]} 37. Bd5 {[%emt 0:00:03]} Qc7 {[%emt 0:00:08]} 38. Nc4 {[%emt 0:00:13]} Ne7 {[%emt 0:00:07]} 39. Be6 {[%emt 0:00:01]} Nc6 {[%emt 0:00:21]} 40. Na3 {[%emt 0:00:04]} Qe7 {[%emt 0:00:08]} 41. Bd5 {[%emt 0:00:04]} Qd7 {[%emt 0:00:05]} 42. Nc4 {[%emt 0:00:06]} Qc7 {[%emt 0:00:04]} 43. Na3 {[%emt 0:00:01]} Qd7 {[%emt 0:00:01]} 44. Qb3 {[%emt 0:00:01]} Qc7 {[%emt 0:00:18]} 45. Nc4 {[%emt 0:00:04]} Ne7 {[%emt 0:00:07]} 46. Nb6 {[%emt 0:00:04]} Nxd5 {[%emt 0:00:26]} 47. Nxd5 {[%emt 0:00:03]} Bf7 {[%emt 0:00:29]} 48. Nxc7 {[%emt 0:00:45]} Bxb3 {[%emt 0:00:02]} 49. c4 {[%emt 0:00:00]} Rd7 {[%emt 0:00:23]} 50. Ne6+ {[%emt 0:00:31]} Kg6 {[%emt 0:00:04]} 51. Ra1 {[%emt 0:00:01]} Re8 {[%emt 0:00:18]} 52. Nexg5 {[%emt 0:00:13]} Bxg5 {[%emt 0:00:05]} 53. Ra3 {[%emt 0:00:00]} b5 {[%emt 0:00:24]} 54. Rxb3 {[%emt 0:00:21]} b4 {[%emt 0:00:01]} 55. Kf1 {[%emt 0:00:04]} Rde7 {[%emt 0:00:01]} 56. Ke2 {[%emt 0:00:01]} Re6 {[%emt 0:00:04]} 57. Rg1 {[%emt 0:00:05]} R6e7 {[%emt 0:00:02]} 58. Rh1 {[%emt 0:00:00]} Re6 {[%emt 0:00:01]} 59. Rg1 {[%emt 0:00:01]} R6e7 {[%emt 0:00:01]} 60. Rh1 {[%emt 0:00:02]} Re6 {[%emt 0:00:00]} 61. Rg1 {[%emt 0:00:01]} 1/2-1/2

[Event "CCT Chessable Masters Place D-I 2024"]
[Site "Online"]
[Date "2024.02.01"]
[Round "2"]
[White "Lazavik, Denis"]
[Black "AnishGiri"]
[Result "1/2-1/2"]
[ECO "E05"]
[WhiteElo "2566"]
[BlackElo "2736"]
[Annotator "TA"]
[PlyCount "81"]
[EventDate "2024.01.12"]
[EventType "k.o."]
[EventCountry "NET"]
[SourceTitle "playchess.com"]
[Source "ChessBase"]
[SourceQuality "1"]
[TimeControl "600+2"]

{[%evp 21,81,18,8,7,10,6,17,17,14,7,7,8,14,9,9,0,22,22,24,12,16,3,14,12,11,0,8,0,0,-4,0,0,0,0,0,0,0,0,0,0,0,0,0,0,0,0,0,0,0,0,0,0,0,0,0,0,0,0,0,0,0,0]} 1. d4 {[%emt 0:00:03]} Nf6 {[%emt 0:00:03]} 2. c4 {[%emt 0:00:01]} e6 {[%emt 0:00:01]} 3. Nf3 {[%emt 0:00:02]} d5 {[%emt 0:00:00]} 4. g3 {[%emt 0:00:01]} Be7 {[%emt 0:00:01]} 5. Bg2 {[%emt 0:00:02]} O-O {[%emt 0:00:00]} 6. O-O {[%emt 0:00:00]} dxc4 {[%emt 0:00:01]} 7. Qc2 {[%emt 0:00:01]} a6 {[%emt 0:00:01]} 8. a4 {[%emt 0:00:01]} Bd7 {[%emt 0:00:00]} 9. Qxc4 {[%emt 0:00:02]} Bc6 {[%emt 0:00:01]} 10. Bg5 {[%emt 0:00:03]} Nbd7 {[%emt 0:00:02]} 11. Nc3 {[%emt 0:00:02]} h6 {[%emt 0:00:01]} 12. Bxf6 {[%emt 0:00:01]} Nxf6 {[%emt 0:00:00]} 13. Rfd1 {[%emt 0:00:06]} a5 {[%emt 0:00:02]} 14. Qb3 {[%emt 0:00:02]} Qb8 {[%emt 0:00:10]} 15. e3 {[%emt 0:00:37]} Rd8 {[%emt 0:00:02]} 16. Ne5 {[%emt 0:00:05]} Bxg2 {[%emt 0:00:02]} 17. Kxg2 {[%emt 0:00:00]} c5 {[%emt 0:00:20]} 18. Nb5 {[%emt 0:00:47]} cxd4 {[%emt 0:00:09]} 19. exd4 {[%emt 0:00:00]} Nd5 {[%emt 0:00:23]} 20. Qf3 {[%emt 0:00:13]} Bf6 {[%emt 0:00:04] The position is equal.} 21. Ng4 {[%emt 0:00:05]} Rd7 {[%emt 0:00:21]} 22. Rac1 {[%emt 0:01:40]} Qd8 {[%emt 0:00:04]} 23. h4 {[%emt 0:00:15]} Rc8 {[%emt 0:00:15]} 24. Rxc8 {[%emt 0:00:35]} Qxc8 {[%emt 0:00:03]} 25. Nc3 {[%emt 0:00:01]} Qc6 {[%emt 0:01:59]} 26. Ne4 {[%emt 0:02:10]} h5 {[%emt 0:02:09]} (26... Qxa4 27. Nc5 (27. Nexf6+ gxf6 28. Nxh6+ Kg7 $15) 27... Qb5 28. Nxd7 Qxd7 29. Kg1 $14) 27. Ngxf6+ {[%emt 0:00:33]} Nxf6 {[%emt 0:00:03]} 28. Nxf6+ {[%emt 0:00:08]} gxf6 {[%emt 0:00:00]} 29. Qxc6 {[%emt 0:00:27]} bxc6 $11 {[%emt 0:00:01][%mdl 4096] Endgame. KR-KR} 30. Rc1 {[%emt 0:00:09]} Rxd4 {[%emt 0:00:05]} 31. b3 {[%emt 0:00:03]} Rd3 {[%emt 0:00:43]} 32. Rxc6 {[%emt 0:00:02]} Rxb3 {[%emt 0:00:01] [#] Threatens to win with ...Rb4.} 33. Rc5 {[%emt 0:00:01][%csl LRa5,LRh5]} Ra3 {[%emt 0:00:44]} 34. Rxa5 {[%emt 0:00:02]} f5 {[%emt 0:00:00]} 35. Ra7 {[%emt 0:00:07]} Kg7 {[%emt 0:00:01]} 36. a5 {[%emt 0:00:14]} e5 {[%emt 0:00:16]} 37. Ra6 {[%emt 0:00:48]} e4 {[%emt 0:00:08]} 38. Ra8 {[%emt 0:00:12]} Ra2 {[%emt 0:00:02]} 39. Kf1 {[%emt 0:00:01]} Kf6 {[%emt 0:00:23][%cal Of5f4]} 40. Ra7 {[%emt 0:00:35]} Kg6 {[%emt 0:00:28]} 41. a6 {[%emt 0:00:09] An interesting draw.   Weighted Error Value: White=0.04 (flawless) /Black=0.03 (flawless) .  OK:         	White=10    	Black=16} 1/2-1/2